fUSD/lending_fUSD_20240814
["ID","MTS","AMOUNT","RATE_DAILY","PERIOD"]
[334866115,1723612543583,156.241626,0.00014794,2]
[334866116,1723612545939,11145.36879738,0.00014416,2]
[334866117,1723612552267,153.017257,0.00013698,2]
[334866118,1723612552566,153.017257,0.00013698,2]
[334866119,1723612552882,153.017257,0.00013698,2]
[334866120,1723612553265,153.017257,0.00013698,2]
[334866121,1723612553565,153.017257,0.00013698,2]
[334866122,1723612554066,153.017257,0.00013972,2]
[334866123,1723612554402,153.017257,0.00013972,2]
[334866124,1723612554732,153.017257,0.00013972,2]
[334866125,1723612555476,153.017257,0.00013972,2]
[334866126,1723612555792,153.017257,0.00013972,2]
[334866127,1723612556128,153.017257,0.00014245,2]
[334866128,1723612556432,153.017257,0.00014246,2]
[334866129,1723612556754,153.017257,0.00014246,2]
[334866130,1723612557067,153.017257,0.00014246,2]
[334866131,1723612557371,153.017257,0.00014519,2]
[334866132,1723612557677,153.017257,0.0001452,2]
[334866133,1723612557995,153.017257,0.0001452,2]
[334866134,1723612558318,153.017257,0.0001452,2]
[334866135,1723612558849,153.017257,0.00014794,2]
[334866136,1723612559045,153.017257,0.00014794,2]
[334866137,1723612559338,153.017257,0.00014794,2]
[334866138,1723612563915,3109.7842,0.00014957,2]
[334866139,1723612628751,4219.37379511,0.000145,2]
[334866140,1723612630189,550.0,0.0001,2]
[334866141,1723612838665,930.52430788,0.0001,2]
[334866142,1723612858384,149.92569212,0.0001,2]
[334866143,1723612858408,641.37517633,0.0001,2]
[334866144,1723612963111,791.30086845,0.0001,2]
[334866145,1723613051052,-535.86025092,0.00014667,10]
[334866146,1723613055925,64.13974908,0.00014579,10]
[334866147,1723613059902,791.30086845,0.0001,2]
[334866148,1723613149920,791.30086845,0.0001,2]
[334866149,1723613156368,150.0,6.94e-05,2]
[334866150,1723613156388,150.0,6.94e-05,2]
[334866151,1723613156408,150.0,6.94e-05,2]
[334866152,1723613156428,150.0,6.94e-05,2]
[334866153,1723613156448,150.0,6.94e-05,2]
[334866154,1723613156467,150.0,6.94e-05,2]
[334866155,1723613156486,82.0356932,6.94e-05,2]
[334866160,1723613237899,791.30086845,6.94e-05,2]
[334866161,1723613239221,454.79667247,8.412e-05,2]
[334866162,1723613245123,150.0,8.412e-05,2]
[334866163,1723613245145,112.88702967,8.412e-05,2]
[334866164,1723613247007,150.0,8.412e-05,2]
[334866165,1723613247035,22.56703197,8.412e-05,2]
[334866166,1723613255122,150.0,8.412e-05,2]
[334866167,1723613255169,150.0,8.412e-05,2]
[334866168,1723613255216,150.0,8.412e-05,2]
[334866169,1723613255261,150.0,8.412e-05,2]
[334866170,1723613255307,150.0,8.412e-05,2]
[334866171,1723613255351,150.0,8.412e-05,2]
[334866172,1723613255398,230.99032954,8.412e-05,2]
[334866173,1723613255442,18598.18655386,8.412e-05,2]
[334866174,1723613269264,425.91305241,8.412e-05,2]
[334866175,1723613273400,791.30086845,0.00010196,2]
[334866176,1723613283049,5559.02670453,0.0001,2]
[334866177,1723613291075,19729.1768834,0.00010196,2]
[334866178,1723613296100,35733.92817192,0.00010196,2]
[334866179,1723613306956,500.0,0.00010608,3]
[334866180,1723613309971,1257.73185636,0.00010196,2]
[334866181,1723613314937,1257.73185636,0.00010196,2]
[334866182,1723613315701,562.4,0.00010544,2]
[334866183,1723613317114,543.49,0.00010628,2]
[334866188,1723613364088,665.36596736,0.00010628,2]
[334866189,1723613370819,227.80268088,0.00010628,2]
[334866192,1723613411355,221.24909006,0.0001062,2]
[334866193,1723613411376,79.16090994,0.0001062,2]
[334866194,1723613430983,150.0,0.0001053,2]
[334866199,1723613432223,-250.0,0.00010702,2]
[334866200,1723613432232,-110.246502,0.00010743,2]
[334866201,1723613432299,-189.753498,0.00010743,2]
[334866202,1723613432309,-115.527844,0.00010744,2]
[334866203,1723613432381,-4638.82494339,0.00010744,2]
[334866204,1723613432393,-2887.5944,0.00010744,2]
[334866205,1723613432458,-3144.07254094,0.00010744,2]
[334866208,1723613437929,-1355.02815999,0.00010744,2]
[334866211,1723613437940,-8076.7199976,0.00010744,2]
[334866221,1723613438222,-1720.83909006,0.00010744,2]
[334866222,1723613438319,-1961.39302402,0.00010744,2]
[334866223,1723613438329,-4640.06006401,0.00010773,2]
[334866224,1723613438338,-709.89,0.00010873,2]
[334866225,1723613438348,-1412.9139165,0.0001089,2]
[334866226,1723613438357,-392.67304101,0.000109,5]
[334866227,1723613438423,-11106.32695899,0.000109,5]
[334866228,1723613438433,-188.66996388,0.000109,2]
[334866229,1723613438442,-310.55183727,0.000109,2]
[334866230,1723613438451,-5564.54417005,0.000109,2]
[334866231,1723613438461,-160.55208685,0.000109,2]
[334866232,1723613438470,-220.4195077,0.00010908,2]
[334866233,1723613438480,-250.0,0.00010959,2]
[334866234,1723613438490,-150.0,0.00010963,2]
[334866235,1723613438502,-200.0,0.00010973,2]
[334866236,1723613438511,-195.36119723,0.00010973,2]
[334866237,1723613438521,-154.24,0.0001099,2]
[334866238,1723613438530,-154.24,0.0001099,2]
[334866239,1723613438539,-3918.35829843,0.00010997,2]
[334866240,1723613438548,-150.24912526,0.00010999,2]
[334866241,1723613438558,-500.0,0.00010999,2]
[334866242,1723613438567,-500.0,0.00010999,2]
[334866243,1723613438576,-500.0,0.00010999,2]
[334866244,1723613438586,-258.25848863,0.00010999,2]
[334866245,1723613438595,-15038.78800386,0.00011,2]
[334866246,1723613438607,-302.44252436,0.00011,2]
[334866283,1723613440168,-1036.84830626,0.00011,2]
[334866285,1723613440180,-788.65747444,0.00011,2]
[334866291,1723613440234,-12.7257,0.00011,2]
[334866293,1723613440245,-561.97850452,0.00011,2]
[334866295,1723613440256,-2371.47496843,0.00011,2]
[334866298,1723613440273,-617.50254672,0.00011,2]
[334866301,1723613440301,-1596.88006637,0.00011,2]
[334866304,1723613440316,-2327.8579357,0.00011,2]
[334866306,1723613440327,-340.78144659,0.00011,2]
[334866331,1723613442929,-5099.99999998,0.00011,2]
[334866342,1723613444139,-23521.76724492,0.00011,2]
[334866343,1723613444150,-18014.01176471,0.00011,2]
[334866344,1723613444163,-277.95,0.00011,2]
[334866345,1723613444174,-881.9766884,0.00011,2]
[334866346,1723613444184,-650.96828781,0.00011,2]
[334866347,1723613444195,-535.53560413,0.00011,2]
[334866348,1723613444206,-2581.2614539,0.00011,2]
[334866349,1723613444612,-2523.82443405,0.00011,2]
[334866350,1723613444622,-124750.05512138,0.00011,2]
[334866351,1723613444634,-1924.59676757,0.00011,2]
[334866352,1723613444646,-935.12,0.00011,2]
[334866353,1723613444657,-5732.347811,0.00011,2]
[334866354,1723613444669,-22163.18622214,0.00011,2]
[334866355,1723613444692,-8047.36758596,0.00011,2]
[334866356,1723613444704,-14218.65315214,0.00011,2]
[334866357,1723613444715,-709.17,0.00011,2]
[334866358,1723613444727,-6081.16104,0.00011,2]
[334866359,1723613445951,-2447.91218181,0.00011,2]
[334866360,1723613445963,-3151.96093187,0.00011,2]
[334866363,1723613446046,-547.191,0.00011,2]
[334866373,1723613446146,-376.58731798,0.00011,2]
[334866375,1723613446157,-456.77284759,0.00011,2]
[334866379,1723613506723,-2976.3989,0.00011,2]
[334866380,1723613507702,-3678.56594504,0.00011,2]
[334866381,1723613507712,-442.82396974,0.00011,2]
[334866382,1723613507736,-285.54664315,0.00011,2]
[334866383,1723613507770,-891.94150928,0.00011,2]
[334866384,1723613507782,-16344.51668327,0.00011,2]
[334866385,1723613507965,-104314.50964679,0.00011,2]
[334866386,1723613508343,-150.0,0.00011,2]
[334866387,1723613508650,150.0,9.996e-05,2]
[334866388,1723613508672,150.0,9.996e-05,2]
[334866389,1723613508693,150.0,9.996e-05,2]
[334866390,1723613508715,220.83909006,9.996e-05,2]
[334866391,1723613508736,137.60090994,9.996e-05,2]
[334866392,1723613513037,227.80268088,0.0001062,2]
[334866393,1723613517470,155.06232604,0.0001062,2]
[334866397,1723613570841,227.80268088,0.0001062,2]
[334866398,1723613589703,32568.62815505,0.0001062,2]
[334866399,1723613628462,231.28344626,0.0001062,2]
[334866406,1723613943762,837.9,8.81e-05,2]
[334866407,1723614029894,173.85,0.00010494,2]
[334866408,1723614030794,10464.01,0.00010494,2]
[334866410,1723614052803,5568.59,0.00010458,2]
[334866413,1723614109830,528.42,0.00010493,2]
[334866414,1723614136424,2575.21,0.00010356,2]
[334866415,1723614150315,520748.60282164,0.00027,120]
[334866416,1723614153282,266.12,0.0001039,2]
[334866417,1723614171770,-250.0,0.00010754,2]
[334866418,1723614171795,-300.0,0.00010799,2]
[334866419,1723614171820,-530.45,0.000108,2]
[334866420,1723614203764,200.0,0.00010602,2]
[334866421,1723614204812,2278.21,0.00010602,2]
[334866428,1723614283147,23900.0,0.00010478,2]
[334866431,1723614287725,930.52430788,0.00010602,2]
[334866434,1723614362362,188.8545039,9.888e-05,2]
[334866436,1723614432530,550.0,0.0001,2]
[334866437,1723614460794,1000.0,0.00010529,2]
[334866438,1723614484250,172.09,0.00010628,2]
[334866439,1723614484570,835.02,8.71e-05,2]
[334866442,1723614541740,250.0,0.00010468,2]
[334866443,1723614550222,502.67043309,0.00010557,2]
[334866451,1723614632011,-303.3037382,0.00010653,2]
[334866452,1723614632023,-177.65,0.00010653,2]
[334866453,1723614632033,-3390.03,0.00010713,2]
[334866454,1723614632043,-300.0,0.00010799,2]
[334866455,1723614632053,-11548.1995,0.000108,2]
[334866456,1723614632062,-166.31999249,0.000109,2]
[334866457,1723614632072,-214.99022056,0.000109,2]
[334866458,1723614632082,-150.0,0.000109,2]
[334866459,1723614632092,-1473.7910977,0.000109,2]
[334866460,1723614632102,-220.4195077,0.000109,2]
[334866461,1723614632112,-198.26387205,0.000109,2]
[334866462,1723614632121,-150.0,0.00010932,2]
[334866463,1723614632131,-250.0,0.00010959,2]
[334866464,1723614632140,-150.0,0.00010959,2]
[334866465,1723614632150,-200.22556273,0.00010973,2]
[334866466,1723614632159,-201.61527318,0.00010973,2]
[334866467,1723614632168,-835.02,0.00010974,2]
[334866468,1723614632178,-499.99,0.00010974,2]
[334866469,1723614632187,-43.27797429,0.00010974,2]
[334866470,1723614632199,-600.0,0.00010974,2]
[334866471,1723614632210,-499.6,0.00010974,2]
[334866472,1723614632222,-999.9006,0.00010974,2]
[334866473,1723614632233,-1000.3932,0.00010974,2]
[334866475,1723614632248,-255.97559429,0.00010974,2]
[334866478,1723614632263,-957.30298068,0.00010974,2]
[334866479,1723614632281,-1219.61965074,0.00010974,2]
[334866480,1723614632290,-154.24,0.0001099,2]
[334866481,1723614632299,-3806.38475378,0.00010999,2]
[334866482,1723614632310,-333.75977607,0.00010999,2]
[334866483,1723614632319,-751.81109187,0.00010999,2]
[334866486,1723614632346,-544.02,0.00010999,2]
[334866488,1723614632361,-961.72395113,0.00010999,2]
[334866490,1723614632370,-150.0,0.00010999,2]
[334866492,1723614632379,-18096.12612273,0.00011,2]
[334866498,1723614637589,3579.6963,0.00010553,2]
[334866512,1723614638096,-607.8,0.00011,2]
[334866514,1723614638108,-402.95592844,0.00011,2]
[334866516,1723614638119,-2043.10614724,0.00011,2]
[334866519,1723614638135,-6062.9094044,0.00011,2]
[334866521,1723614638145,-7240.00000001,0.00011,2]
[334866528,1723614638201,-4338.91245617,0.00011,2]
[334866530,1723614638212,-484.5265281,0.00011,2]
[334866532,1723614638224,-12319.77877489,0.00011,2]
[334866533,1723614638235,-5406.64754168,0.00011,2]
[334866534,1723614638245,-1858.427974,0.00011,2]
[334866535,1723614638256,-925.30673529,0.00011,2]
[334866536,1723614638267,-465.18662274,0.00011,2]
[334866537,1723614638453,-712.94795762,0.00011,2]
[334866538,1723614638498,-0.00385789,0.00011,2]
[334866546,1723614640172,-1736.41306025,0.00011,2]
[334866547,1723614640192,-5590.95131345,0.00011,2]
[334866548,1723614640305,-514.63207778,0.00011,2]
[334866549,1723614640317,-504.73912154,0.00011,2]
[334866550,1723614640328,-1134.2918454,0.00011,2]
[334866552,1723614640338,-920.67342662,0.00011,2]
[334866624,1723614642987,-3805.80185951,0.00011,2]
[334866628,1723614643014,-1131.62039901,0.00011,2]
[334866656,1723614643256,-1846.79926518,0.00011,2]
[334866663,1723614644722,5000.0,0.00025,60]
[334866664,1723614644735,-294.14994472,0.00011,2]
[334866665,1723614644746,-681.1126026,0.00011,2]
[334866666,1723614644757,-276.639247,0.00011,2]
[334866667,1723614645240,-150.0,0.00011,2]
[334866678,1723614646181,-4643.55379647,0.00011,2]
[334866679,1723614646263,-55747.21617718,0.00011,2]
[334866680,1723614646279,-553.36221724,0.00011,2]
[334866681,1723614646293,-2516.6080195,0.00011,2]
[334866682,1723614646510,-47874.04492927,0.00011,2]
[334866683,1723614646526,-5647.34128312,0.00011,2]
[334866684,1723614646539,-6722.5665,0.00011,2]
[334866685,1723614646639,-446582.72459813,0.00011,2]
[334866686,1723614646653,-34022.69188704,0.00011,2]
[334866687,1723614900357,367.87917961,0.00010587,2]
[334866688,1723614987283,800.48,8.727e-05,2]
[334866689,1723615001376,250.0,0.00010395,2]
[334866690,1723615230045,6652.66,2.4e-05,2]
[334866691,1723615244375,150.32,0.00010464,2]
[334866692,1723615324334,500.0,5e-05,2]
[334866693,1723615335268,23900.0,0.0001042,2]
[334866694,1723615363440,3058.26,0.00010471,2]
[334866695,1723615370152,200.0,0.00010479,2]
[334866696,1723615442039,150.0,0.00010464,2]
[334866697,1723615442066,150.0,0.00010464,2]
[334866698,1723615442087,150.0,0.00010464,2]
[334866699,1723615442109,150.0,0.00010464,2]
[334866700,1723615442130,150.0,0.00010464,2]
[334866701,1723615442152,50.0,0.00010464,2]
[334866702,1723615453401,-250.0,0.00010642,2]
[334866703,1723615462670,150.0,0.0001,3]
[334866704,1723615462692,150.0,0.0001,3]
[334866705,1723615462713,150.0,0.0001,3]
[334866706,1723615462734,150.0,0.0001,3]
[334866707,1723615462757,150.0,0.0001,3]
[334866708,1723615462778,150.0,0.0001,3]
[334866709,1723615462801,150.0,0.0001,3]
[334866710,1723615462824,150.0,0.0001,3]
[334866711,1723615462848,150.0,0.0001,3]
[334866712,1723615462870,108.55557874,0.0001,3]
[334866714,1723615523705,150.0,0.0001,2]
[334866715,1723615523730,112.88702967,0.0001,2]
[334866716,1723615586592,172.56703197,0.0001,2]
[334866717,1723615589978,794.28,8.583e-05,2]
[334866718,1723615698824,243.27449517,0.00010403,2]
[334866719,1723615702480,499.05820559,0.00010403,2]
[334866720,1723615726249,150.0,0.00010546,2]
[334866721,1723615726274,0.32,0.00010546,2]
[334866738,1723615832821,-200.0,0.00010672,2]
[334866739,1723615832831,-606.0,0.0001077,2]
[334866740,1723615832840,-794.28,0.00010847,2]
[334866741,1723615832850,-300.0,0.00010899,2]
[334866742,1723615832860,-1952.30209764,0.000109,2]
[334866743,1723615832873,-443.95869326,0.000109,2]
[334866744,1723615832885,-584.59550704,0.000109,2]
[334866745,1723615832896,-621.32544341,0.000109,2]
[334866746,1723615832955,-377.277724,0.000109,2]
[334866747,1723615832967,-360.35116936,0.000109,2]
[334866755,1723615838615,-984.9317487,0.000109,2]
[334866756,1723615838625,-1373.64621498,0.000109,2]
[334866757,1723615838635,-166.08707228,0.000109,2]
[334866758,1723615838645,-214.99022055,0.000109,2]
[334866759,1723615838654,-183.18628706,0.000109,2]
[334866760,1723615838664,-2372.1192,0.0001092,2]
[334866761,1723615838674,-249.68,0.00010927,2]
[334866762,1723615838684,-250.0,0.00010959,2]
[334866763,1723615838695,-150.0,0.00010996,2]
[334866764,1723615838705,-8158.84150306,0.00010997,2]
[334866765,1723615838717,-485.28526725,0.00010997,2]
[334866766,1723615838728,-335.76750053,0.00010997,2]
[334866767,1723615838739,-529.12011047,0.00010997,2]
[334866768,1723615838751,-2425.6198756,0.00010997,2]
[334866769,1723615838786,-1207.91249778,0.00010997,2]
[334866770,1723615838981,-3998.24190485,0.00010997,2]
[334866771,1723615838993,-289.78080979,0.00010997,2]
[334866772,1723615839005,-1237.77311209,0.00010997,2]
[334866773,1723615839016,-987.54270914,0.00010997,2]
[334866778,1723615840337,-2807.06847142,0.00010997,2]
[334866779,1723615840350,-5458.17294156,0.00010997,2]
[334866780,1723615840360,-499.99,0.00010997,2]
[334866781,1723615840370,-528.84,0.00010997,2]
[334866782,1723615840379,-163.34208768,0.00010997,2]
[334866783,1723615840389,-17063.09298131,0.00011,2]
[334866784,1723615840401,-863.3110572,0.00011,2]
[334866785,1723615840416,-740.07,0.00011,2]
[334866786,1723615840500,-24645.84365897,0.00011,2]
[334866787,1723615840509,-62612.11399981,0.00011,2]
[334866788,1723615840534,-1209.54095137,0.00011,2]
[334866795,1723615843458,-829.60981885,0.00011,2]
[334866796,1723615843469,-650.0,0.00011,2]
[334866797,1723615845266,-449.242,0.00011,2]
[334866798,1723615845277,-488.32985,0.00011,2]
[334866799,1723615845288,-250.69,0.00011,2]
[334866800,1723615845300,-2365.81996177,0.00011,2]
[334866801,1723615845315,-78133.52700914,0.00011,2]
[334866802,1723615845366,3000.0,0.00025,60]
[334866804,1723615846330,-1394.51005659,0.00011,2]
[334866805,1723615846342,-3644.72791428,0.00011,2]
[334866806,1723615846353,-910.07126,0.00011,2]
[334866807,1723615846364,-572.85,0.00011,2]
[334866808,1723615846460,-2580.28709736,0.00011,2]
[334866809,1723615846471,-260.81795811,0.00011,2]
[334866810,1723615846499,-568.6014818,0.00011,2]
[334866811,1723615846510,-3568.141199,0.00011,2]
[334866812,1723615846521,-2522.7804,0.00011,2]
[334866813,1723615846531,-4610.71360311,0.00011,2]
[334866814,1723615846542,-1509.11451349,0.00011,2]
[334866815,1723615846554,-15183.09361482,0.00011,2]
[334866816,1723615846564,-1891.09879631,0.00011,2]
[334866817,1723615846622,-2678.93484286,0.00011,2]
[334866818,1723615846633,-517.49928082,0.00011,2]
[334866819,1723615846644,-1143.97892178,0.00011,2]
[334866820,1723615846655,-1216.62699894,0.00011,2]
[334866821,1723615846667,-1752.42752178,0.00011,2]
[334866822,1723615846679,-27466.2388339,0.00011,2]
[334866823,1723615846694,-293.44362095,0.00011,2]
[334866824,1723615846705,-269.38241397,0.00011,2]
[334866957,1723615917092,-312.61449337,0.000109,2]
[334866958,1723615917117,-192.10195576,0.000109,2]
[334866959,1723615917139,-4372.61812079,0.000109,2]
[334866960,1723615917162,-159.10333718,0.000109,2]
[334866961,1723615917185,-300.0,0.00010999,2]
[334866962,1723615917211,-19001.0921929,0.00011,2]
[334866963,1723615922996,-2655.06665585,0.00011,2]
[334866964,1723615923025,-17344.93334415,0.00011,2]
[334866965,1723615923494,-20000.0,0.00011,2]
[334866966,1723615924502,-20000.0,0.00011,2]
[334866967,1723615925080,-20000.0,0.00011,2]
[334866968,1723615926514,-20000.0,0.00011,2]
[334866970,1723615970800,150.0,0.0001034,2]
[334866971,1723615970822,64.0,0.0001034,2]
[334866972,1723615970926,-214.0,0.0001067,2]
[334866973,1723615972955,-312.61449337,0.000109,2]
[334866974,1723615972983,-19687.38550663,0.00011,2]
[334866975,1723615973655,-20000.0,0.00011,2]
[334866976,1723615974181,-150.0,0.00011,2]
[334866977,1723615974349,-220.83909006,0.00011,2]
[334866978,1723615974406,-20000.0,0.00011,2]
[334866979,1723615982142,-300.0,0.00010999,2]
[334866980,1723615982169,-9812.1134,0.00011,2]
[334866981,1723615991982,-360.0,0.00011,2]
[334866982,1723616005917,12923.58849723,0.0001,14]
[334866983,1723616053883,2269.70341727,0.0001,2]
[334866984,1723616062293,1052.50266721,0.0001,2]
[334866985,1723616063851,150.0,8.839e-05,2]
[334866986,1723616063873,150.0,8.839e-05,2]
[334866987,1723616063894,150.0,8.839e-05,2]
[334866988,1723616063917,150.0,8.839e-05,2]
[334866989,1723616063940,150.0,8.839e-05,2]
[334866990,1723616063968,19.46,8.839e-05,2]
[334866991,1723616117583,161.04,9.83e-05,2]
[334866992,1723616124187,10000.0,9.83e-05,2]
[334866993,1723616241997,150.0,0.0001,2]
[334866994,1723616242022,150.0,0.0001,2]
[334866995,1723616242043,150.0,0.0001,2]
[334866996,1723616242068,100.0,0.0001,2]
[334866997,1723616272777,282.14061466,9.83e-05,2]
[334866998,1723616275104,150.0,9.83e-05,2]
[334866999,1723616275125,150.0,9.83e-05,2]
[334867000,1723616275146,150.0,9.83e-05,2]
[334867001,1723616275168,150.0,9.83e-05,2]
[334867002,1723616275189,150.0,9.83e-05,2]
[334867003,1723616275212,1549.71165444,9.83e-05,2]
[334867004,1723616276136,150.0,9.83e-05,2]
[334867005,1723616276156,150.0,9.83e-05,2]
[334867006,1723616276177,73.35179796,9.83e-05,2]
[334867007,1723616286725,-1500.0,0.000107,2]
[334867008,1723616286747,-1500.0,0.00010717,2]
[334867009,1723616286768,-1100.0,0.00010718,2]
[334867010,1723616304005,150.0,9.83e-05,2]
[334867011,1723616304027,77.80268088,9.83e-05,2]
[334867012,1723616349183,1809.17,9.832e-05,2]
[334867013,1723616360194,640.16,9.832e-05,2]
[334867014,1723616367864,-150.0,0.00010718,2]
[334867015,1723616369291,-150.0,0.00010718,2]
[334867016,1723616370781,-100.0,0.00010718,2]
[334867017,1723616370803,-50.0,0.00010718,2]
[334867018,1723616378745,150.0,9.833e-05,2]
[334867019,1723616378766,150.0,9.833e-05,2]
[334867020,1723616378788,150.0,9.833e-05,2]
[334867021,1723616378809,150.0,9.833e-05,2]
[334867022,1723616378830,40.0,9.833e-05,2]
[334867023,1723616395275,227.80268088,9.83e-05,2]
[334867024,1723616404976,279.74,9.834e-05,2]
[334867025,1723616432630,150.0,9.833e-05,2]
[334867026,1723616432653,65.05,9.833e-05,2]
[334867027,1723616439205,23900.0,9.833e-05,2]
[334867028,1723616456497,250.0,9.833e-05,2]
[334867029,1723616493114,200.0,9.833e-05,2]
[334867030,1723616496604,150.0,9.833e-05,2]
[334867031,1723616496624,150.0,9.833e-05,2]
[334867032,1723616496645,0.41,9.833e-05,2]
[334867033,1723616506023,150.0,9.833e-05,2]
[334867034,1723616506046,77.80268088,9.833e-05,2]
[334867035,1723616570841,795.44,8.219e-05,2]
[334867036,1723616571050,795.44,0.00010467,2]
[334867037,1723616617662,10000.0,9.833e-05,2]
[334867038,1723616698976,200.34,0.00025,60]
[334867039,1723616736745,21739.85,9.5e-05,2]
[334867040,1723616751933,-150.0,0.00010725,2]
[334867041,1723616752848,-150.0,0.00010725,2]
[334867042,1723616753300,-150.0,0.00010725,2]
[334867043,1723616755904,150.0,6.94e-05,2]
[334867044,1723616755926,150.0,6.94e-05,2]
[334867045,1723616755951,150.0,6.94e-05,2]
[334867046,1723616755973,150.0,6.94e-05,2]
[334867047,1723616755997,150.0,6.94e-05,2]
[334867048,1723616756019,150.0,6.94e-05,2]
[334867049,1723616756040,150.0,6.94e-05,2]
[334867050,1723616756061,150.0,6.94e-05,2]
[334867051,1723616756082,150.0,6.94e-05,2]
[334867052,1723616756103,150.0,6.94e-05,2]
[334867053,1723616756124,150.0,6.94e-05,2]
[334867054,1723616756146,150.0,6.94e-05,2]
[334867055,1723616756168,150.0,6.94e-05,2]
[334867056,1723616756192,150.0,6.94e-05,2]
[334867057,1723616756219,150.0,6.94e-05,2]
[334867058,1723616756240,244.95487903,6.94e-05,2]
[334867059,1723616756262,21175.10720361,6.94e-05,2]
[334867061,1723616826794,262.88702967,6.94e-05,2]
[334867062,1723616827681,1725.0,8.412e-05,2]
[334867063,1723616874517,150.0,9.826e-05,2]
[334867064,1723616874539,26.2,9.826e-05,2]
[334867065,1723616888554,265.93013769,0.00010196,2]
[334867066,1723616895518,150.0,0.00010196,2]
[334867067,1723616895539,150.0,0.00010196,2]
[334867068,1723616895560,200.0,0.00010196,2]
[334867069,1723616905181,488.0,9.826e-05,2]
[334867097,1723616948210,250.0,9.827e-05,2]
[334867098,1723616953706,200.0,9.824e-05,2]
[334867099,1723616990415,948.32,9.824e-05,2]
[334867100,1723617025426,745.27,8.219e-05,2]
[334867101,1723617025660,745.27,0.00010467,2]
[334867120,1723617033465,-8.826e-05,0.00010726,2]
[334867122,1723617033477,-149.99991174,0.00010726,2]
[334867124,1723617033486,-300.0,0.00010726,2]
[334867127,1723617033496,-300.0,0.00010726,2]
[334867130,1723617033524,-15.29030878,0.00010727,2]
[334867134,1723617033544,-134.70969122,0.00010727,2]
[334867136,1723617033554,-313.41989632,0.00010727,2]
[334867138,1723617033565,-4056.45282718,0.00010727,2]
[334867197,1723617038647,-942.98330118,0.00010727,2]
[334867198,1723617038683,-905.46293556,0.00010727,2]
[334867202,1723617039495,-72.03921829,0.00010727,2]
[334867222,1723617040510,-2851.77915316,0.00010727,2]
[334867223,1723617040530,-2358.2896275,0.00010727,2]
[334867224,1723617040543,-337.81956199,0.00010727,2]
[334867225,1723617040657,-18355.85178302,0.00010727,2]
[334867226,1723617040667,-11429.23437751,0.00010727,2]
[334867227,1723617040677,-150.0,0.00010728,2]
[334867228,1723617040687,-300.0,0.00010729,2]
[334867230,1723617040697,-150.0,0.00010731,2]
[334867232,1723617040706,-150.0,0.00010731,2]
[334867234,1723617040716,-150.0,0.00010732,2]
[334867236,1723617040726,-150.0,0.00010735,2]
[334867238,1723617040736,-150.0,0.00010737,2]
[334867240,1723617040746,-203.24854396,0.00010739,2]
[334867242,1723617040755,-150.0,0.00010742,2]
[334867243,1723617040765,-210.2,0.00010742,2]
[334867245,1723617040775,-499.99,0.00010743,2]
[334867247,1723617040786,-1997.2,0.00010743,2]
[334867249,1723617040795,-2354.23,0.00010743,2]
[334867251,1723617040804,-150.99,0.00010743,2]
[334867253,1723617040814,-150.0,0.00010745,2]
[334867254,1723617040823,-150.0,0.00010755,2]